[Event "44th Chess Olympiad Open 2022"]
[Site "Chennai"]
[Date "2022.08.07"]
[Round "9.3"]
[White "Giri, Anish"]
[Black "Maghsoodloo, Parham"]
[Result "1/2-1/2"]
[WhiteElo "2760"]
[BlackElo "2701"]
[Annotator "TA"]
[PlyCount "154"]
[EventDate "2022.??.??"]
[TimeControl "60"]

{[%evp 12,154,10,6,23,0,0,-12,-9,0,3,7,18,10,19,22,19,12,12,12,17,15,35,31,35,
45,35,28,37,24,38,31,27,37,56,0,0,0,43,32,42,35,45,77,58,36,35,43,36,53,74,70,
62,65,61,59,65,61,51,-14,-24,-16,-18,-36,-38,-43,-28,-48,-16,-29,-12,-25,-8,-8,
-8,-8,-8,-8,-8,-16,0,-16,-9,-9,0,0,0,0,0,0,0,0,0,-60,-68,-68,-29,-25,0,0,-9,
-24,-24,-38,0,0,0,0,0,0,0,0,0,0,0,0,0,0,0,0,0,0,0,0,0,0,0,0,0,0,0,-42,0,-42,0,
-42,0,0,0,-42,0,-42,-23,-30,0]} 1. d4 {[%emt 0:00:02]} Nf6 {[%emt 0:00:06]} 2.
c4 {[%emt 0:00:06]} e6 {[%emt 0:00:03]} 3. Nc3 {[%emt 0:00:06]} Bb4 {[%emt 0:
00:00]} 4. e3 {[%emt 0:00:21]} O-O {[%emt 0:07:13]} 5. Bd3 {[%emt 0:00:15]} d5
{[%emt 0:01:20]} 6. a3 {[%emt 0:00:32]} dxc4 {[%emt 0:01:28]} 7. Bxc4 {[%emt 0:
00:00]} Be7 {[%emt 0:00:35] E48: Nimzo-Indian: Rubinstein: 5 Bd3 d5 including
6 Ne2, but excluding 6 a3.} 8. b4 {[%emt 0:03:51]} b6 {[%emt 0:07:18]} 9. Nf3 {
[%emt 0:04:39]} Bb7 {[%emt 0:02:30] The position is equal.} 10. O-O {[%emt 0:
00:00]} Nbd7 {[%emt 0:02:49]} 11. Bb2 {[%emt 0:11:47]} a5 {[%emt 0:14:41]} 12.
b5 {[%emt 0:02:57]} Bd6 {[%emt 0:00:06] [#]} 13. Nd2 $146 {[%emt 0:09:45]} ({
Predecessor:} 13. Ne2 Qe7 14. a4 Rad8 15. Qc2 Nd5 16. e4 Nb4 17. Qb1 e5 18. Re1
g6 19. Ng3 {0-1 (37) Wen,Y (2571)-Tran,T (2512) Hamedan 2018}) 13... e5 {
[%emt 0:01:41]} 14. d5 {[%emt 0:00:09]} Nc5 {[%emt 0:01:42]} 15. e4 {[%emt 0:
00:00]} Nfd7 {[%emt 0:06:27]} 16. Qc2 {[%emt 0:05:12]} Qh4 {[%emt 0:01:29]
[%cal Yf7f5]} 17. Rae1 {[%emt 0:03:28]} Rae8 {[%emt 0:00:47]} 18. Ne2 {[%emt 0:
00:00]} Bc8 {[%emt 0:04:35]} 19. Ng3 {[%emt 0:00:16]} g6 {[%emt 0:02:24]} 20.
Bc1 {[%emt 0:01:32]} Nb7 {[%emt 0:07:32]} 21. Ba2 {[%emt 0:02:16]} Kh8 {
[%emt 0:07:05]} 22. Kh1 {[%emt 0:02:12]} Bc5 {[%emt 0:02:02]} 23. Nb3 {[%emt 0:
00:00]} (23. f4 $14) 23... Bd6 $1 $11 {[%emt 0:01:51]} 24. Nd2 {[%emt 0:00:06]}
Qe7 {[%emt 0:02:26]} 25. Nc4 {[%emt 0:01:07]} Bc5 {[%emt 0:00:08]} 26. f4 {
[%emt 0:01:24][%cal Yf2f4,Yf4f5] Strongly threatening fxe5.} f6 {[%emt 0:03:30]
} 27. f5 {[%emt 0:00:26]} Nd6 {[%emt 0:01:55]} 28. a4 {[%emt 0:00:00]} Rg8 {
[%emt 0:02:51]} 29. Rf3 {[%emt 0:01:05]} Bb4 {[%emt 0:04:25]} 30. Ref1 {
[%emt 0:00:42]} g5 {[%emt 0:00:17]} 31. Nb2 {[%emt 0:01:06] White is more
active.} Nc5 {[%emt 0:02:30]} 32. Re3 {[%emt 0:00:58]} Bd7 {[%emt 0:01:12]} 33.
Nd3 {[%emt 0:05:27]} Nxd3 {[%emt 0:01:58]} 34. Rxd3 {[%emt 0:00:08]} Rc8 {
[%emt 0:00:12]} 35. Rc3 {[%emt 0:03:18]} Bxc3 {[%emt 0:04:08]} 36. Qxc3 {
[%emt 0:00:05]} h5 {[%emt 0:00:10][%cal Yh7h5,Yh5h4] [#] aiming for .. .h4.}
37. Qd3 {[%emt 0:04:56]} h4 {[%emt 0:02:01]} 38. Ne2 {[%emt 0:00:03][%cal
Yg3e2,Ye2c3,Yc3d1,Yd1e3]} Qh7 {[%emt 0:01:26]} 39. Nc3 {[%emt 0:00:00]} g4 {
[%emt 0:00:07][%cal Yg5g4,Yg4g3]} 40. Nd1 {[%emt 0:01:49]} Be8 {[%emt 0:03:01]}
41. Ne3 {[%emt 0:34:03]} g3 {[%emt 0:30:37] [#] Hoping for ...h3.} 42. h3 {
[%emt 0:00:07]} Bh5 {[%emt 0:00:01]} 43. Bb1 {[%emt 0:00:00]} Rg7 {[%emt 0:01:
37]} 44. Ba3 {[%emt 0:00:33]} Qh6 {[%emt 0:00:07]} 45. Bc1 {[%emt 0:00:28]
[%cal Ye3g4] Threatens to win with Ng4!} Qh7 {[%emt 0:00:02]} 46. Kg1 {[%emt 0:
02:34]} Kg8 {[%emt 0:00:00]} 47. Bc2 {[%emt 0:00:00]} Rd8 {[%emt 0:00:00]} 48.
Bd1 {[%emt 0:00:00]} Bxd1 {[%emt 0:00:00]} 49. Nxd1 {[%emt 0:00:00]} Qh5 {
[%emt 0:00:00]} 50. Nc3 {[%emt 0:00:00]} Kh8 {[%emt 0:00:00]} 51. Re1 {[%emt 0:
00:00]} Rdd7 {[%emt 0:00:00]} 52. Be3 {[%emt 0:00:00]} (52. Nd1 $11) 52... Kh7
{[%emt 0:00:00][%cal Yh8h7,Yh7g8,Yg8f7,Yf7e8,Ye8d8,Yd8c8,Yc8b7]} 53. Qd1 {
[%emt 0:00:00]} Qxd1 {[%emt 0:00:00]} 54. Rxd1 {[%emt 0:00:00]} Kg8 {[%emt 0:
00:00]} (54... Rg5 $5) 55. Kf1 {[%emt 0:00:00]} Kf7 {[%emt 0:00:00]} 56. Ke2 {
[%emt 0:00:00]} Ke8 {[%emt 0:00:00]} 57. Kd3 {[%emt 0:00:00]} Kd8 {[%emt 0:00:
00]} 58. Rf1 {[%emt 0:00:00]} Kc8 {[%emt 0:00:00]} 59. Bc1 {[%emt 0:00:00]} Kb7
{[%emt 0:00:00]} 60. Nd1 {[%emt 0:00:00]} Rg8 {[%emt 0:00:00]} 61. Ne3 {
[%emt 0:00:00]} Kc8 {[%emt 0:00:00]} 62. Nc4 {[%emt 0:00:00]} Nf7 {[%emt 0:00:
00]} 63. Be3 {[%emt 0:00:00]} Kb7 {[%emt 0:00:00]} 64. Rc1 {[%emt 0:00:00]} Rg7
{[%emt 0:00:00]} 65. Ke2 {[%emt 0:00:00]} Rg8 {[%emt 0:00:00]} 66. Kf3 {
[%emt 0:00:00]} Rdd8 {[%emt 0:00:00]} 67. Ke2 {[%emt 0:00:00]} Rd7 {[%emt 0:00:
00]} 68. Kf3 {[%emt 0:02:26]} Rdd8 {[%emt 0:00:00]} 69. Bd2 {[%emt 0:02:00]}
Rd7 {[%emt 0:00:00]} 70. Rc3 {[%emt 0:00:28]} Rdd8 {[%emt 0:00:00]} 71. Rc2 {
[%emt 0:00:08]} Rd7 {[%emt 0:00:00]} 72. Rc1 {[%emt 0:00:02]} Rdd8 {[%emt 0:00:
00]} 73. Ke2 {[%emt 0:00:16]} Rd7 {[%emt 0:00:00]} 74. Kd3 {[%emt 0:00:35]}
Rdd8 {[%emt 0:00:00]} 75. Be3 {[%emt 0:01:24]} Rd7 {[%emt 0:00:00]} 76. Rc2 {
[%emt 0:02:45]} Rg7 {[%emt 0:00:00]} 77. Bc1 {[%emt 0:00:09]} Rg8 {[%emt 0:00:
00] Weighted Error Value: White=0.09 (flawless) /Black=0.06 (flawless)} 1/2-1/2

[Event "44th Chess Olympiad Open 2022"]
[Site "Chennai"]
[Date "2022.08.07"]
[Round "9.3"]
[White "Tabatabaei, M. Amin"]
[Black "Van Foreest, Jorden"]
[Result "1/2-1/2"]
[WhiteElo "2664"]
[BlackElo "2678"]
[Annotator "TA"]
[PlyCount "217"]
[EventDate "2022.??.??"]
[TimeControl "60"]

{[%evp 62,216,20,20,26,26,19,0,0,0,10,5,9,8,8,12,10,-13,0,0,0,0,0,0,0,0,0,0,8,
8,8,0,8,8,8,8,8,0,8,8,8,8,8,8,8,8,8,8,8,8,8,8,8,8,8,8,8,8,8,0,8,8,8,8,8,8,8,8,
8,8,8,0,8,8,8,8,8,0,0,0,8,0,8,0,8,0,8,0,0,0,8,0,8,8,8,0,8,0,8,8,8,0,8,8,8,8,8,
8,8,0,0,0,8,0,8,8,8,8,8,8,8,0,0,0,0,0,0,0,8,0,8,0,8,0,8,0,0,0,0,0,0,0,8,0,0,0,
0,0,0,0,8,0,0,0,0,0,0]} 1. Nf3 {[%emt 0:00:33]} d5 {[%emt 0:00:11]} 2. d4 {
[%emt 0:00:19]} c5 {[%emt 0:00:09]} 3. c4 {[%emt 0:02:24]} e6 {[%emt 0:00:14]}
4. cxd5 {[%emt 0:01:22]} exd5 {[%emt 0:00:08]} 5. g3 {[%emt 0:01:07]} Nf6 {
[%emt 0:00:20]} 6. Bg2 {[%emt 0:00:10]} Nc6 {[%emt 0:00:10]} 7. O-O {[%emt 0:
00:00]} Be7 {[%emt 0:00:48]} 8. dxc5 {[%emt 0:01:03]} Bxc5 {[%emt 0:00:12]} 9.
a3 {[%emt 0:00:07]} Ne4 {[%emt 0:00:41]} 10. b4 {[%emt 0:03:33]} Be7 {[%emt 0:
00:00]} 11. Bb2 {[%emt 0:01:54]} Bf6 {[%emt 0:00:19]} 12. Bxf6 {[%emt 0:21:07]}
Qxf6 {[%emt 0:00:15]} 13. Qxd5 {[%emt 0:05:23]} Be6 {[%emt 0:02:16]} 14. Qxe4 {
[%emt 0:01:34]} Qxa1 {[%emt 0:00:06]} 15. b5 {[%emt 0:20:04]} Nd8 {[%emt 0:00:
00]} 16. Qb4 {[%emt 0:00:32]} Qf6 {[%emt 0:00:07]} 17. Nc3 {[%emt 0:01:19]} Qe7
{[%emt 0:00:57]} 18. Nd4 {[%emt 0:02:13]} Rc8 {[%emt 0:20:52]} 19. Ne4 {
[%emt 0:01:01]} Qxb4 {[%emt 0:00:07]} 20. axb4 {[%emt 0:00:05]} Rc7 {[%emt 0:
00:00]} 21. Ra1 {[%emt 0:02:27]} Ke7 {[%emt 0:04:01]} 22. Nc5 {[%emt 0:02:31]}
b6 {[%emt 0:00:23]} 23. Nd3 {[%emt 0:04:32]} Kf6 {[%emt 0:11:55]} 24. f4 {
[%emt 0:00:22]} Re8 {[%emt 0:00:48]} 25. Ne5 {[%emt 0:04:56]} Bd7 {[%emt 0:00:
00]} 26. Ndc6 {[%emt 0:01:39]} Bxc6 {[%emt 0:01:46]} 27. bxc6 {[%emt 0:00:14]}
b5 {[%emt 0:00:03]} 28. Nd7+ {[%emt 0:08:01]} Ke7 {[%emt 0:08:45]} 29. Nb8 {
[%emt 0:00:20]} Ne6 {[%emt 0:00:53]} 30. Na6 {[%emt 0:00:08]} Rcc8 {[%emt 0:00:
00]} 31. Kf2 {[%emt 0:05:31]} Red8 {[%emt 0:00:44]} 32. Ra5 {[%emt 0:05:46]}
Rd2 {[%emt 0:01:18]} 33. Ke3 {[%emt 0:02:09]} Rb2 {[%emt 0:02:07]} 34. f5 {
[%emt 0:01:55]} Rb3+ {[%emt 0:01:59]} 35. Kf2 {[%emt 0:00:01]} Nd4 {[%emt 0:00:
00]} 36. Nc5 {[%emt 0:00:01]} Rxb4 {[%emt 0:00:35]} 37. Rxa7+ {[%emt 0:00:05]}
Ke8 $1 {[%emt 0:03:50]} 38. Bd5 {[%emt 0:00:30]} Rxc6 {[%emt 0:00:11]} 39.
Bxf7+ {[%emt 0:01:06]} Kf8 {[%emt 0:04:52]} 40. Ne6+ {[%emt 0:00:12]} Nxe6 {
[%emt 0:00:06]} 41. Bxe6 {[%emt 0:02:42]} Rc2 {[%emt 0:11:32]} 42. Rf7+ {
[%emt 0:01:44]} Ke8 {[%emt 0:00:13]} 43. Rxg7 {[%emt 0:00:04]} Re4 {[%emt 0:00:
00]} 44. Kf3 {[%emt 0:00:25]} Rexe2 {[%emt 0:02:10]} 45. Rxh7 {[%emt 0:00:04]}
Rxh2 {[%emt 0:00:35]} 46. Rb7 {[%emt 0:00:47]} Rc3+ {[%emt 0:05:29]} 47. Kf4 {
[%emt 0:00:11]} Rf2+ {[%emt 0:03:24]} 48. Ke5 {[%emt 0:00:09]} Rxg3 {[%emt 0:
00:00]} 49. Rb8+ {[%emt 0:00:14]} Ke7 {[%emt 0:00:01]} 50. f6+ {[%emt 0:00:11]}
Rxf6 {[%emt 0:00:02]} 51. Rb7+ {[%emt 0:00:06]} Kd8 {[%emt 0:00:04]} 52. Kxf6 {
[%emt 0:00:08]} Rd3 $1 {[%emt 0:01:24]} 53. Ke5 {[%emt 0:01:51]} Ra3 {[%emt 0:
00:00]} 54. Rd7+ {[%emt 0:13:11]} Ke8 {[%emt 0:00:28]} 55. Rh7 {[%emt 0:00:08]}
Kd8 {[%emt 0:01:36]} 56. Bd5 {[%emt 0:01:05]} Ra6 $1 {[%emt 0:00:58]} 57. Rb7 {
[%emt 0:00:09]} b4 {[%emt 0:01:05]} 58. Be6 {[%emt 0:02:05]} Rc6 {[%emt 0:00:
00]} 59. Rxb4 {[%emt 0:01:22]} Rc7 {[%emt 0:00:46]} 60. Kf6 {[%emt 0:00:20]}
Rc6 {[%emt 0:05:21]} 61. Rb7 {[%emt 0:00:26]} Rd6 {[%emt 0:00:17]} 62. Ke5 {
[%emt 0:02:36]} Rc6 {[%emt 0:00:04]} 63. Rd7+ {[%emt 0:04:43]} Kc8 $1 {[%emt 0:
00:00]} 64. Rh7+ {[%emt 0:00:03]} Kd8 {[%emt 0:00:36]} 65. Rh8+ {[%emt 0:04:13]
} Ke7 {[%emt 0:00:09]} 66. Bd5 {[%emt 0:00:03]} Rc7 {[%emt 0:00:04]} 67. Rh6 {
[%emt 0:00:02]} Rd7 {[%emt 0:00:23]} 68. Bc6 {[%emt 0:00:12]} Rc7 {[%emt 0:00:
00]} 69. Re6+ {[%emt 0:00:04]} Kf8 {[%emt 0:00:47]} 70. Kd6 {[%emt 0:00:19]}
Rf7 {[%emt 0:00:42]} 71. Re8+ {[%emt 0:01:26]} Kg7 {[%emt 0:00:06]} 72. Bd5 {
[%emt 0:00:02]} Rf8 {[%emt 0:01:01]} 73. Re1 {[%emt 0:00:58]} Kf6 {[%emt 0:00:
00]} 74. Be6 {[%emt 0:00:44]} Rd8+ {[%emt 0:00:31]} 75. Bd7 {[%emt 0:00:02]}
Rf8 {[%emt 0:00:15]} 76. Rg1 {[%emt 0:01:07]} Rf7 {[%emt 0:00:15]} 77. Rf1+ {
[%emt 0:01:46]} Kg7 {[%emt 0:00:07]} 78. Bf5 {[%emt 0:00:03]} Kf8 {[%emt 0:00:
00]} 79. Rf2 {[%emt 0:00:46]} Rf6+ {[%emt 0:00:09]} 80. Ke5 {[%emt 0:00:06]}
Ke7 {[%emt 0:00:13]} 81. Rc2 {[%emt 0:01:45]} Rf7 {[%emt 0:00:12]} 82. Rc6 {
[%emt 0:01:20]} Rg7 {[%emt 0:00:22]} 83. Re6+ {[%emt 0:01:15]} Kd8 {[%emt 0:00:
00]} 84. Kf6 {[%emt 0:00:18]} Rb7 {[%emt 0:01:42]} 85. Rc6 {[%emt 0:00:15]}
Rf7+ $1 {[%emt 0:00:04]} 86. Ke5 {[%emt 0:01:12]} Rc7 {[%emt 0:00:22]} 87. Rh6
{[%emt 0:00:18]} Ke7 {[%emt 0:00:08]} 88. Be4 {[%emt 0:00:33]} Rc5+ {[%emt 0:
00:00]} 89. Bd5 {[%emt 0:00:02]} Rc7 {[%emt 0:00:10]} 90. Bc6 {[%emt 0:00:01]}
Kd8 {[%emt 0:00:47]} 91. Rd6+ {[%emt 0:00:12]} Ke7 {[%emt 0:00:08]} 92. Re6+ {
[%emt 0:00:03]} Kf8 {[%emt 0:00:09]} 93. Kd6 {[%emt 0:00:03]} Rf7 {[%emt 0:00:
00]} 94. Bd5 {[%emt 0:01:21]} Kg7 {[%emt 0:00:22]} 95. Re1 {[%emt 0:00:03]} Rf5
{[%emt 0:00:56]} 96. Ke6 {[%emt 0:01:21]} Rg5 {[%emt 0:02:17]} 97. Be4 {
[%emt 0:00:23]} Kh6 {[%emt 0:00:30]} 98. Bf5 {[%emt 0:00:42]} Rg3 {[%emt 0:00:
00]} 99. Kf6 {[%emt 0:00:05]} Rg6+ {[%emt 0:00:04]} 100. Ke5 {[%emt 0:00:04]}
Rg2 {[%emt 0:01:18]} 101. Be4 {[%emt 0:00:25]} Rg7 {[%emt 0:00:59]} 102. Kf4 {
[%emt 0:00:59]} Rf7+ {[%emt 0:00:08]} 103. Bf5 {[%emt 0:00:02]} Kg7 {[%emt 0:
00:00]} 104. Ke5 {[%emt 0:00:13]} Kf8 {[%emt 0:00:09]} 105. Be6 {[%emt 0:00:27]
} Rg7 {[%emt 0:00:13]} 106. Rh1 {[%emt 0:00:55]} Ke7 {[%emt 0:00:08]} 107. Rh5
{[%emt 0:00:09]} Kf8 {[%emt 0:00:42]} 108. Kf6 {[%emt 0:00:06]} Rf7+ {[%emt 0:
00:00]} 109. Bxf7 {[%emt 0:00:05]} 1/2-1/2

[Event "44th Chess Olympiad Open 2022"]
[Site "Chennai"]
[Date "2022.08.07"]
[Round "9.3"]
[White "Bok, Benjamin"]
[Black "Idani, Pouya"]
[Result "1/2-1/2"]
[WhiteElo "2616"]
[BlackElo "2641"]
[Annotator "TA"]
[PlyCount "61"]
[EventDate "2022.??.??"]
[TimeControl "60"]

{[%evp 9,61,29,34,29,35,21,37,31,30,31,16,14,9,20,10,14,24,11,10,3,69,0,0,0,0,
0,0,0,0,0,0,0,0,0,0,0,20,0,15,0,6,0,0,0,0,0,0,0,0,0,0,0,0,0]} 1. d4 {[%emt 0:
00:00]} Nf6 {[%emt 0:00:06]} 2. c4 {[%emt 0:00:05]} e6 {[%emt 0:00:03]} 3. Nf3
{[%emt 0:00:05]} d5 {[%emt 0:00:52]} 4. Nc3 {[%emt 0:00:05]} h6 {[%emt 0:01:13]
} 5. Bf4 {[%emt 0:01:11]} Bd6 {[%emt 0:00:14]} 6. Bxd6 {[%emt 0:00:06] D37:
Queen's Gambit Declined: 5 Bf4.} Qxd6 $1 {[%emt 0:00:03] 6...Qxd6 is better
than 6...cxd6.} 7. e3 {[%emt 0:00:06]} O-O {[%emt 0:00:04]} 8. Rc1 {[%emt 0:00:
00] White is slightly better.} b6 {[%emt 0:00:50]} 9. cxd5 {[%emt 0:00:20]}
Nxd5 {[%emt 0:00:05]} 10. Nxd5 {[%emt 0:00:11] [#]} exd5 $146 {[%emt 0:00:04]}
({Predecessor:} 10... Qxd5 11. a3 Qd6 12. Qc2 c6 13. Qe4 Qd5 14. Bd3 Qxe4 15.
Bxe4 Bb7 16. Ne5 f6 {½-½ (49) Ding,L (2791)-Carlsen,M (2862) chess24.com INT
2020}) 11. Qc2 {[%emt 0:01:14]} c6 {[%emt 0:00:05]} 12. Bd3 {[%emt 0:13:17]}
Be6 {[%emt 0:00:07]} 13. O-O {[%emt 0:03:02]} Rc8 {[%emt 0:01:03]} 14. Ne5 {
[%emt 0:20:01]} Nd7 {[%emt 0:30:14]} (14... c5 $1 $11) 15. Nxd7 {[%emt 0:21:06]
0x0.001f24fa8b16dp-1022s more active pieces.} (15. Nxc6 $14 a6 {[#]} 16. Bxa6
$1 Rxc6 17. Qxc6 Qxc6 18. Rxc6 Rxa6 19. Ra1) 15... Bxd7 $11 {[%emt 0:05:48]
The position is equal.} 16. Rfd1 {[%emt 0:02:15]} Be6 {[%emt 0:01:58]} 17. Bh7+
{[%emt 0:06:52]} Kh8 {[%emt 0:00:44]} 18. Bf5 {[%emt 0:00:02]} c5 {[%emt 0:00:
00]} 19. Bxe6 {[%emt 0:00:22]} fxe6 {[%emt 0:05:04][%cal Yf7e6,Ye6e5,Ye5d4]}
20. dxc5 {[%emt 0:00:12]} Rxc5 {[%emt 0:02:53]} 21. Qa4 {[%emt 0:00:00]} a5 {
[%emt 0:01:50]} 22. h3 {[%emt 0:07:26]} e5 {[%emt 0:02:06]} 23. Rc2 {[%emt 0:
03:14]} Rac8 {[%emt 0:08:31]} 24. Rcd2 {[%emt 0:01:03]} Rc1 {[%emt 0:00:00]}
25. Qb3 {[%emt 0:00:49]} d4 {[%emt 0:01:16]} 26. exd4 {[%emt 0:02:19]} exd4 {
[%emt 0:00:11]} 27. Qd3 {[%emt 0:00:09]} Rxd1+ {[%emt 0:01:31]} 28. Rxd1 {
[%emt 0:00:01]} Re8 {[%emt 0:01:30]} 29. g3 {[%emt 0:04:07]} Qd5 {[%emt 0:00:
00]} 30. b3 {[%emt 0:00:59]} b5 {[%emt 0:03:36]} 31. h4 {[%emt 0:00:49]
Weighted Error Value: White=0.06 (flawless) /Black=0.08 (flawless)} 1/2-1/2

[Event "44th Chess Olympiad Open 2022"]
[Site "Chennai"]
[Date "2022.08.07"]
[Round "9.3"]
[White "Mousavi, Seyed Khalil"]
[Black "Warmerdam, Max"]
[Result "1/2-1/2"]
[WhiteElo "2537"]
[BlackElo "2610"]
[Annotator "TA"]
[PlyCount "79"]
[EventDate "2022.??.??"]
[TimeControl "60"]

{[%evp 22,79,59,52,44,38,59,60,64,39,68,43,38,40,55,54,57,45,42,41,78,49,50,50,
50,50,50,50,50,50,51,50,50,26,26,27,27,26,26,33,33,26,68,65,63,39,51,51,51,46,
51,51,51,51,51,43,43,21,23,0]} 1. e4 {[%emt 0:00:12]} c5 {[%emt 0:00:07]} 2.
Nf3 {[%emt 0:00:26]} d6 {[%emt 0:00:07]} 3. d4 {[%emt 0:00:18]} cxd4 {[%emt 0:
00:00]} 4. Nxd4 {[%emt 0:00:06]} Nf6 {[%emt 0:00:05]} 5. Nc3 {[%emt 0:00:07]}
a6 {[%emt 0:00:05]} 6. Bg5 {[%emt 0:01:30]} Nc6 {[%emt 0:02:39]} 7. Qd2 {
[%emt 0:03:16]} e6 {[%emt 0:00:05]} 8. O-O-O {[%emt 0:01:43]} Bd7 {[%emt 0:00:
00]} 9. f4 {[%emt 0:02:28][%cal Yf2f4,Yf4f5]} Be7 {[%emt 0:00:09]} 10. Nf3 {
[%emt 0:05:22]} b5 {[%emt 0:00:06]} 11. Bxf6 {[%emt 0:00:46]} gxf6 {[%emt 0:00:
06]} 12. f5 {[%emt 0:00:03]} h5 {[%emt 0:07:32] B69: Sicilian: Richter-Rauzer:
7...a6 8 0-0-0 Bd7 9 f4 Be7 10 Nf3 b5 11 Bxf6.} 13. Kb1 {[%emt 0:10:14]} Ne5 {
[%emt 0:00:33] [#]} 14. Ne2 $146 {[%emt 0:01:51][%cal Yc3e2,Ye2f4,Yf4d5]} ({
Predecessor:} 14. fxe6 fxe6 15. Ne2 Qb6 16. Nf4 Nxf3 17. gxf3 Kf7 18. Bh3 Rag8
19. Rhe1 Bc8 20. a3 {0-1 (54) Kokarev,D (2605) -Hayrapetyan,H (2434) Moscow
2019}) 14... Nc4 {[%emt 0:01:20] White is slightly better.} 15. Qe1 {[%emt 0:
07:31]} Qa5 {[%emt 0:00:19]} 16. Qxa5 {[%emt 0:02:25]} (16. fxe6 {looks
sharper.} fxe6 17. c3 Qa4 18. b3) 16... Nxa5 {[%emt 0:00:55][%cal Yc4a5,Ya5b7,
Yb7c5,Yc5a4]} 17. Nf4 {[%emt 0:00:04]} Nb7 {[%emt 0:11:17]} 18. g3 {[%emt 0:08:
38]} Nc5 {[%emt 0:10:44]} 19. Bg2 {[%emt 0:02:21]} Rc8 {[%emt 0:07:57]} 20.
Rhe1 {[%emt 0:02:40]} Bc6 {[%emt 0:00:00]} 21. Nh4 {[%emt 0:06:17][%cal Yf3h4,
Yh4g2,Yg2e3] White is more active.} e5 {[%emt 0:03:51]} 22. Nd5 {[%emt 0:01:26]
} Bd8 {[%emt 0:00:32]} 23. Bf3 {[%emt 0:03:54]} Na4 {[%emt 0:18:03]} 24. Ng2 {
[%emt 0:03:09] Pair of Knights!} Kd7 {[%emt 0:06:40]} 25. Nge3 {[%emt 0:04:16]}
Nb6 {[%emt 0:00:00]} 26. h3 {[%emt 0:03:57]} Bb7 {[%emt 0:02:18]} 27. Rd3 {
[%emt 0:01:39]} Nxd5 {[%emt 0:05:16]} 28. Nxd5 {[%emt 0:00:41]} Rc5 {[%emt 0:
00:14]} 29. Red1 {[%emt 0:01:55][%cal Yd5f6] Hoping for Nxf6+!} Bxd5 {[%emt 0:
00:10]} 30. Rxd5 {[%emt 0:01:06]} Rxd5 {[%emt 0:00:16]} 31. Rxd5 $11 {[%emt 0:
00:50] Endgame KRB-KRB} Kc6 {[%emt 0:00:38]} 32. c3 {[%emt 0:02:14]} Bb6 {
[%emt 0:00:00]} 33. Kc2 {[%emt 0:00:35]} Bf2 {[%emt 0:03:56]} 34. g4 {[%emt 0:
00:08]} hxg4 {[%emt 0:01:18]} 35. Bxg4 {[%emt 0:00:09]} a5 {[%emt 0:00:21]} 36.
a4 {[%emt 0:00:00]} Bc5 $1 {[%emt 0:00:53]} 37. axb5+ {[%emt 0:01:38]} Kxb5 {
[%emt 0:00:04]} 38. Rd1 {[%emt 0:00:10]} Kc6 {[%emt 0:02:55]} 39. Ra1 {[%emt 0:
02:09]} Bb6 {[%emt 0:00:24]} 40. Rd1 {[%emt 0:00:23] Weighted Error Value:
White=0.07 (flawless) /Black=0.05 (flawless)} 1/2-1/2

[Event "44th Chess Olympiad Open 2022"]
[Site "Chennai"]
[Date "2022.08.07"]
[Round "9.4"]
[White "Aronian, Levon"]
[Black "Theodorou, Nikolas"]
[Result "0-1"]
[WhiteElo "2775"]
[BlackElo "2575"]
[Annotator "TA"]
[PlyCount "66"]
[EventDate "2022.??.??"]
[TimeControl "60"]

{[%evp 13,66,44,50,18,36,29,43,16,77,57,77,0,-10,0,-13,-6,0,-32,32,33,28,31,32,
8,7,0,0,0,0,0,0,0,0,0,0,-221,-11,-14,-18,-136,-141,-386,-379,-375,-357,-654,
-647,-625,-621,-29983,-1595,-5289,-5289,-5273,-5214]} 1. d4 {[%emt 0:00:07]}
Nf6 {[%emt 0:00:08]} 2. c4 {[%emt 0:00:05]} g6 {[%emt 0:00:06]} 3. Nc3 {
[%emt 0:00:05]} Bg7 {[%emt 0:00:06]} 4. e4 {[%emt 0:00:05]} d6 {[%emt 0:00:05]}
5. Be2 {[%emt 0:00:05]} O-O {[%emt 0:00:22]} 6. Be3 {[%emt 0:00:04]} e5 {
[%emt 0:00:10]} 7. d5 {[%emt 0:00:18]} Na6 {[%emt 0:00:07]} 8. h3 {[%emt 0:00:
00] E73: King's Indian: Averbakh Variation without 6...c5.} c6 {[%emt 0:04:39]}
9. Nf3 {[%emt 0:04:44]} Nh5 {[%emt 0:01:04]} 10. g3 {[%emt 0:10:21] White is
slightly better.} f5 {[%emt 0:04:11]} (10... cxd5 $11 {remains equal.} 11. Qxd5
(11. Nxd5 Nf6 $11) (11. exd5 f5 $11) 11... Nf6) 11. exf5 {[%emt 0:00:05]} gxf5
{[%emt 0:00:08] [#]} 12. c5 $146 {[%emt 0:16:18]} (12. dxc6 $16 {Threatens to
win with Qd5+.} bxc6 13. Nxe5 $1 dxe5 14. Qxd8 (14. Bxh5 Be6 $11) 14... Rxd8
15. Bxh5) ({Predecessor:} 12. Bg5 Nf6 13. Qd2 c5 14. a3 Qe8 15. Nh4 Bd7 16. Qc2
e4 17. Nd1 Kh8 18. Ne3 {0-1 (40) Studer,N (2546)-Yilmaz,M (2604) Moscow 2019})
12... f4 $11 {[%emt 0:16:08]} 13. gxf4 {[%emt 0:00:00]} Nxf4 {[%emt 0:00:12]
Strongly threatening ...Ng2+.} (13... exf4 14. Bd4 $14) 14. Rg1 {[%emt 0:00:00]
Inhibits Ng2+.} Nxc5 {[%emt 0:10:44]} 15. b4 {[%emt 0:00:00]} Ncd3+ {[%emt 0:
00:00]} 16. Bxd3 $14 {[%emt 0:00:00]} Nxd3+ {[%emt 0:03:02]} 17. Qxd3 {[%emt 0:
00:00]} Rxf3 {[%emt 0:00:00]} 18. dxc6 {[%emt 0:08:16]} bxc6 {[%emt 0:00:00]}
19. O-O-O {[%emt 0:00:28]} d5 {[%emt 0:13:56] Inhibits Qc4.} 20. Rxg7+ {
[%emt 0:01:39] Remove Defender} Kxg7 {[%emt 0:00:02] Really sharp!} 21. Rg1+ $1
{[%emt 0:00:08]} Kh8 {[%emt 0:00:08] Hoping for ...Qe7.} 22. Bd4 $1 {[%emt 0:
00:07]} exd4 {[%emt 0:00:05]} 23. Qxf3 {[%emt 0:00:04][%cal Yf3f4] Qf4! would
kill now.} Qd6 {[%emt 0:11:52] Inhibits Qf4.} (23... dxc3 24. Qf4) 24. Rg5 $2 {
[%emt 0:25:29]} h6 $2 {[%emt 0:09:12]} (24... dxc3 {is a self mate.} 25. Qf7) (
24... Bd7 $19 25. Nd1 (25. Qf7 $2 Qf8 $19) 25... Rf8) 25. Rg3 $1 $11 {[%emt 0:
07:04][%cal Yf3f7] aiming for Qf7!} Ba6 {[%emt 0:02:07]} 26. Qf7 {[%emt 0:09:
56]} Qf8 $36 {[%emt 0:00:00] Black is on the roll.} (26... Qe5 $2 {[#]} 27. Rg6
$1 Qg5+ 28. Rxg5 $18) 27. Qc7 {[%emt 0:00:04] Loses the game.} (27. Qxf8+ $17
Rxf8 28. Nd1) 27... Qf6 $19 {[%emt 0:00:00]} ({Worse is} 27... dxc3 28. Qe5+
Kh7 29. Qc7+ Kh8 30. Qe5+ Kh7 31. Qc7+ Kh8 $11) 28. Nd1 {[%emt 0:00:34]} Be2 {
[%emt 0:01:02] White must now prevent ...d3.} 29. f4 $2 {[%emt 0:01:51]} (29.
b5 Re8 30. Qxc6) 29... Re8 {[%emt 0:02:36] And now ...Bxd1 would win.} 30. Qd7
{[%emt 0:01:57]} Rf8 {[%emt 0:15:13]} 31. Rg1 {[%emt 0:11:04]} d3 {[%emt 0:00:
00]} (31... Qxf4+ $142 32. Kc2 d3+ 33. Kb1 Qxb4+ 34. Nb2 Qd4 35. Qg7+ Qxg7 36.
Rxg7 Rf1+ 37. Nd1 Rxd1+ 38. Kb2 Kxg7 39. Kc3 d2 40. Kc2 d4 41. a4 a5 42. h4 c5
43. h5 c4 44. Kb2 c3+ 45. Kb3 Ra1 46. Kc2 d1=Q#) 32. Qxa7 {[%emt 0:00:58]} Bxd1
{[%emt 0:00:00]} 33. Kxd1 {[%emt 0:00:04]} Qb2 {[%emt 0:00:00] Weighted Error
Value: White=0.87/Black=0.46} 0-1